[Event "WR Chess Masters 2023"]
[Site "Duesseldorf"]
[Date "2023.02.16"]
[Round "1.1"]
[White "Nepomniachtchi, Ian"]
[Black "Abdusattorov, Nodirbek"]
[Result "1/2-1/2"]
[ECO "A57"]
[WhiteElo "2793"]
[BlackElo "2734"]
[Annotator "TA"]
[PlyCount "37"]
[EventDate "2023.02.16"]
[EventCountry "GER"]
[SourceTitle "playchess.com"]
[Source "ChessBase"]
[SourceQuality "1"]
[TimeControl "40/7200:20/3600:900+30"]

{[%evp 11,37,22,35,41,136,55,65,14,15,9,26,27,31,0,0,0,0,0,0,0,0,0,0,0,0,0,0,0]} 1. d4 {[%emt 0:00:08]} Nf6 {[%emt 0:00:37]} 2. c4 {[%emt 0:00:05]} c5 {[%emt 0:00:23]} 3. d5 {[%emt 0:00:45]} b5 {[%emt 0:00:04]} 4. cxb5 {[%emt 0:01:20]} a6 {[%emt 0:00:05]} 5. e3 {[%emt 0:01:20]} e6 {[%emt 0:01:07]} 6. Nc3 {[%emt 0:05:27]} exd5 {[%emt 0:01:40]} 7. Nxd5 {[%emt 0:04:02] A57: Benko/Volga Gambit.} Be7 {[%emt 0:00:16] [#]} (7... Bb7 $14 8. Nxf6+ Qxf6) 8. Nf3 {[%emt 0:03:04]} (8. b6 $6 Nxd5 9. Qxd5 Nc6 $11) ({White should try} 8. Nxf6+ $1 $16 gxf6 9. Qf3) 8... O-O $14 {[%emt 0:02:42] [#]} 9. b3 $146 {[%emt 0:13:11] White has more active pieces.} ({Much weaker is} 9. b6 Nxd5 10. Qxd5 Qxb6 $11) (9. Nxe7+ $14 Qxe7 10. a4) ({Predecessor:} 9. bxa6 Nxa6 10. Nxe7+ Qxe7 11. Be2 d5 12. O-O Bf5 13. b3 Nb4 14. a3 Bc2 15. Qd2 {0-1 Ivic,V (2614)-Christiansen,J (2501) Wch Blitz Almaty 2022 (15)}) 9... Nxd5 $1 $11 {[%emt 0:11:10]} 10. Qxd5 {[%emt 0:02:16]} Qb6 {[%emt 0:00:08][%cal Oe7f6] Black is weak on the light squares} 11. Bb2 {[%emt 0:02:56] Against Bf6. Hoping for Bd3.} ({And not} 11. Qxa8 Bb7 $17) (11. a4 {simplifies} Bb7 12. Qd1 Bf6 13. Ra2) 11... Bb7 {[%emt 0:13:15]} 12. Qf5 {[%emt 0:02:35] And now Bd3 would win.} ({Not} 12. Qe5 $2 Bf6 13. Qf5 Bxb2 $19) (12. Qh5 $5 {[%cal Rf1d3]}) 12... axb5 {[%emt 0:08:48][%cal Oc5c4] The position is equal.} 13. Bd3 {[%emt 0:01:28][%csl Gd3][%cal Rf5h7] [#]} g6 $1 {[%emt 0:00:09]} 14. Qe5 {[%emt 0:14:32][%csl Gb2][%cal Re5g7]} f6 $1 {[%emt 0:00:06]} 15. Qxe7 {[%emt 0:13:53][%cal Of3g5] White threatens Ng5! and mate.} Rf7 {[%emt 0:00:06]} 16. Qe8+ {[%emt 0:00:06]} Rf8 {[%emt 0:00:03]} 17. Qe7 {[%emt 0:00:20][%cal Of3g5] White wants to mate with Ng5!} Rf7 {[%emt 0:00:05]} 18. Qe8+ {[%emt 0:00:05]} Rf8 {[%emt 0:00:05]} 19. Qe7 {[%emt 0:00:18] Weighted Error Value: White=0.21 (precise) /Black=0.06 (flawless)} 1/2-1/2

[Event "WR Chess Masters 2023"]
[Site "Duesseldorf"]
[Date "2023.02.16"]
[Round "1.2"]
[White "So, Wesley"]
[Black "Duda, Jan-Krzysztof"]
[Result "1-0"]
[ECO "E04"]
[WhiteElo "2766"]
[BlackElo "2729"]
[Annotator "TA"]
[PlyCount "95"]
[EventDate "2023.02.16"]
[EventCountry "GER"]
[SourceTitle "playchess.com"]
[Source "ChessBase"]
[SourceQuality "1"]
[TimeControl "40/7200:20/3600:900+30"]

{[%evp 24,95,35,37,113,108,177,174,149,164,264,250,237,234,394,395,439,306,251,252,295,291,278,280,300,300,302,293,367,365,360,356,437,433,451,447,437,435,461,394,404,401,393,401,406,406,400,401,745,711,707,513,512,391,512,398,990,910,1656,1658,1118,989,970,872,892,872,761,503,494,430,422,421,562,553]} 1. Nf3 {[%emt 0:00:20]} d5 {[%emt 0:00:10]} 2. g3 {[%emt 0:00:13]} Nf6 {[%emt 0:00:09]} 3. Bg2 {[%emt 0:00:05]} c5 {[%emt 0:00:19]} 4. O-O {[%emt 0:00:17]} Nc6 {[%emt 0:00:08]} 5. d4 {[%emt 0:00:17]} e6 {[%emt 0:00:09]} 6. c4 {[%emt 0:08:41]} dxc4 {[%emt 0:00:07]} 7. Qa4 {[%emt 0:00:05]} Bd7 {[%emt 0:00:25]} 8. Qxc4 {[%emt 0:00:06]} cxd4 {[%emt 0:00:22]} 9. Nxd4 {[%emt 0:00:07]} Rc8 {[%emt 0:00:07]} 10. Nc3 {[%emt 0:03:12]} Nxd4 {[%emt 0:00:10]} 11. Qxd4 {[%emt 0:00:04]} Bc5 {[%emt 0:00:08]} 12. Qh4 {[%emt 0:00:31]} Bc6 {[%emt 0:00:11]} 13. Rd1 {[%emt 0:21:25][%cal Bf1d1,Bd1d3,Bd3b3,Bb3b7][%mdl 32]} Qb6 {[%emt 0:15:12] 13...Qa5 is the fancy move. E04: Open Catalan: 5 Nf3.} (13... Qa5 $14) 14. Bxc6+ $16 {[%emt 0:10:31]} Rxc6 {[%emt 0:02:24] [#]} (14... Qxc6 $16 15. Bh6 O-O) 15. Bh6 $1 $18 {[%emt 0:00:48][%cal Bc1h6,Bh6e3,Be3d4][%mdl 608] Deflection} Bf8 {[%emt 0:02:49] White is clearly better.} (15... Qxb2 $2 16. Bxg7 Be7 17. Rab1 $18) (15... gxh6 16. Qxf6) 16. Rd3 {[%emt 0:17:40]} Nd5 {[%emt 0:14:31]} (16... gxh6 $2 17. Qxf6 Rg8 18. Rad1 $18) (16... e5 $142) 17. Nxd5 {[%emt 0:07:05]} exd5 {[%emt 0:00:17]} 18. Be3 $40 {[%emt 0:02:51][%mdl 128] [#] White attacks with force.} Qxb2 $146 {[%emt 0:22:14]} (18... Be7 {is a better defense.}) ({Predecessor:} 18... Bc5 19. Bxc5 Qxc5 20. Re3+ Kd7 21. Qg4+ Kc7 22. Qxg7 Rf8 23. Rd1 a6 24. Red3 {1-0 Izzat,K (2496)-Sukandar,I (2393) Adelaide Lidums GM 2018 (4)}) 19. Bd4 {[%emt 0:00:32]} Qb4 {[%emt 0:01:03]} (19... Rc1+ $2 20. Kg2 Qxe2 21. Re3+ $18) 20. Rb3 {[%emt 0:05:18]} (20. Bxa7 Qxh4 21. gxh4 Rg6+ 22. Kh1 Ra6 $14) 20... Qe7 {[%emt 0:01:37]} 21. Qxe7+ {[%emt 0:00:05]} (21. Bxa7 Qxh4 22. gxh4 Rc7 $16) 21... Kxe7 {[%emt 0:01:01]} 22. Rxb7+ {[%emt 0:02:08]} (22. Bxa7 Ke6 23. Rxb7 Bc5 $16) 22... Ke6 {[%emt 0:00:06]} 23. Rb8 {[%emt 0:02:52]} (23. Rxa7 $6 Bd6 24. Bxg7 Rb8 $18) 23... h5 {[%emt 0:10:48]} 24. Rab1 {[%emt 0:04:47]} (24. Bxa7 g6 $16) 24... h4 {[%emt 0:00:58]} 25. Kg2 {[%emt 0:01:27]} (25. Bxa7 f6 26. a4 g5 $18) 25... Kf5 {[%emt 0:15:04]} 26. Kf3 {[%emt 0:02:06]} (26. Bxa7 g5 27. Rd8 h3+ 28. Kf1 f6 $18) 26... hxg3 {[%emt 0:01:16]} 27. hxg3 {[%emt 0:00:05]} Rc4 {[%emt 0:00:59]} 28. e3 {[%emt 0:00:45]} (28. Bxa7 g5 29. Rd8 g4+ 30. Kg2 Ra4 $18) 28... Rc2 {[%emt 0:00:58]} 29. R1b5 {[%emt 0:05:40]} (29. Bxa7 Rh2 30. Rf1 (30. Rxf8 $2 Rhxf2#) (30. g4+ Kg5 $14) 30... Bd6 $16) 29... Kg6 {[%emt 0:02:32][%cal Oh8h2]} 30. Rxd5 {[%emt 0:00:50]} ({Not} 30. Bxa7 Rh2 31. e4 (31. Rxf8 Rhxf2+ 32. Kg4 f5+ $17) 31... dxe4+ 32. Kxe4 Rxa2 $14) 30... Rxa2 {[%emt 0:00:21]} 31. Rdd8 {[%emt 0:03:09]} Rh2 {[%emt 0:01:07]} 32. Rxf8 {[%emt 0:00:05]} Raxf2+ {[%emt 0:01:45]} 33. Ke4 {[%emt 0:00:07]} f6 {[%emt 0:00:43]} 34. Rb7 {[%emt 0:02:11]} ({Resist} 34. Bxa7 Rh3 35. Rb7 Rxg3 $18) 34... a6 {[%emt 0:04:30]} 35. Ra8 {[%emt 0:03:07]} Ra2 {[%emt 0:01:20]} (35... Rh7 $142 36. Rxa6 Rh8) 36. Raa7 {[%emt 0:00:24]} Rh7 {[%emt 0:00:08]} 37. Kf3 {[%emt 0:02:47]} Ra5 {[%emt 0:00:30]} 38. Rb6 {[%emt 0:02:34]} Rg5 {[%emt 0:03:17]} 39. Kg2 {[%emt 0:01:43] Repels Rh3} a5 $2 {[%emt 0:01:37]} (39... Rd5 40. Rbxa6 Rhh5) 40. e4 {[%emt 0:00:00] White is clearly winning.} Rg4 {[%emt 0:00:00]} 41. Kf3 {[%emt 0:00:51]} Rg5 {[%emt 0:01:46]} 42. Be3 {[%emt 0:00:37]} Re5 {[%emt 0:00:18]} 43. Bf4 {[%emt 0:00:27]} Rc5 {[%emt 0:00:05]} 44. e5 {[%emt 0:03:50]} Rh8 {[%emt 0:02:18]} 45. Rba6 {[%emt 0:01:58]} Rd8 {[%emt 0:02:16]} 46. exf6 {[%emt 0:00:36]} (46. Rxa5 Rxa5 47. Rxa5 fxe5 48. Ra6+ Kh5 49. g4+ Kh4 50. Bxe5 Rd3+ 51. Ke4 Rd7) 46... gxf6 {[%emt 0:00:10]} 47. Rxa5 {[%emt 0:00:33]} Rc3+ {[%emt 0:00:06]} 48. Kg4 {[%emt 0:00:27] Black got outplayed after the opening.   Weighted Error Value: White=0.17 (very precise) /Black=0.44} 1-0

[Event "WR Chess Masters 2023"]
[Site "Duesseldorf"]
[Date "2023.02.16"]
[Round "1.3"]
[White "Giri, Anish"]
[Black "Gukesh D"]
[Result "1/2-1/2"]
[ECO "E49"]
[WhiteElo "2780"]
[BlackElo "2718"]
[Annotator "TA"]
[PlyCount "164"]
[EventDate "2023.02.16"]
[EventCountry "GER"]
[SourceTitle "playchess.com"]
[Source "ChessBase"]
[SourceQuality "1"]
[TimeControl "40/7200:20/3600:900+30"]

{[%evp 13,164,0,19,6,25,22,40,35,51,55,72,23,33,26,35,31,28,16,25,6,11,10,21,28,30,14,32,16,30,31,52,52,46,39,52,42,54,51,58,60,60,57,57,58,57,54,54,52,51,50,66,66,60,56,68,78,72,76,87,81,101,105,101,60,121,89,87,64,102,66,62,0,115,115,108,99,109,109,165,125,124,93,123,79,84,22,22,0,90,49,49,49,74,66,74,60,94,94,94,94,94,94,94,72,65,60,60,60,60,56,56,56,70,56,71,67,85,64,67,69,86,80,122,78,79,78,78,78,81,78,78,78,86,86,86,78,78,0,85,0,78,64,67,74,77,10,10,10,10,10,12,8,10]} 1. d4 {[%emt 0:00:03]} d5 {[%emt 0:00:15]} 2. c4 {[%emt 0:00:08]} e6 {[%emt 0:00:05]} 3. Nc3 {[%emt 0:00:14]} Bb4 {[%emt 0:00:08]} 4. e3 {[%emt 0:03:49]} Nf6 {[%emt 0:00:56]} 5. a3 {[%emt 0:00:12]} Bxc3+ {[%emt 0:00:07]} 6. bxc3 {[%emt 0:00:05]} c6 {[%emt 0:00:31]} 7. Bd3 {[%emt 0:02:34] 7.a4 deserves study.} O-O {[%emt 0:01:11][%cal Oe6e5]} 8. Ne2 {[%emt 0:02:51] E49: Nimzo-Indian: Rubinstein: 5 Bd3 d5 6 a3 Bxc3+ 7 bxc3.} e5 {[%emt 0:29:34]} 9. dxe5 {[#]} Ng4 $146 {[%emt 0:00:44]} (9... dxc4 {seems wilder.} 10. exf6 Qxd3 11. Qxd3 cxd3 12. fxg7 Rd8) ({Predecessor:} 9... dxc4 10. exf6 Qxd3 11. Qxd3 cxd3 12. fxg7 Rd8 13. Nf4 Na6 14. f3 Nc5 15. Rb1 b5 {½-½ Yang,D (2481)-Dragun,K (2585) USA-chT College final 2019 (2.2)}) 10. cxd5 {[%emt 0:14:11] White is slightly better.} Nxe5 {[%emt 0:00:52]} 11. e4 {[%emt 0:12:13]} f5 12. O-O {[%emt 0:11:17]} (12. Bc2 $16) 12... Nxd3 $11 {[%emt 0:19:52][%mdl 64] Remove Defender} 13. Qxd3 {[%emt 0:00:09]} fxe4 {[%emt 0:00:04]} 14. Qxe4 {[%emt 0:00:42]} cxd5 {[%emt 0:01:42]} 15. Qd3 {[%emt 0:06:21]} Bf5 {[%emt 0:02:15]} 16. Qg3 {[%emt 0:01:21]} Nc6 {[%emt 0:05:13]} 17. Be3 {[%emt 0:02:37]} Qe8 {[%emt 0:08:39]} 18. Rad1 {[%emt 0:01:31]} Qf7 {[%emt 0:08:46]} 19. Rd2 {[%emt 0:10:17] Black is weak on the dark squares} Rad8 {[%emt 0:01:05]} 20. Rfd1 {[%emt 0:00:42]} Rd7 {[%emt 0:02:33]} 21. Nd4 {[%emt 0:03:35]} Bg6 {[%emt 0:03:39]} 22. Nxc6 {[%emt 0:03:44]} bxc6 {[%emt 0:00:02] [#]} 23. c4 $1 {[%emt 0:00:50]} Bh5 {[%emt 0:07:00]} (23... Re8 24. cxd5) 24. f3 {[%emt 0:01:05]} Re8 {[%emt 0:00:04]} 25. Bf2 {[%emt 0:03:54]} Bg6 {[%emt 0:01:13]} 26. cxd5 {[%emt 0:00:38]} cxd5 {[%emt 0:00:13]} 27. h3 {[%emt 0:02:24]} h6 {[%emt 0:00:35]} 28. Rc1 {[%emt 0:01:15]} Kh7 {[%emt 0:00:43]} 29. Bd4 {[%emt 0:03:29]} Bf5 {[%emt 0:03:46]} 30. Kh2 {[%emt 0:03:32]} Re6 {[%emt 0:04:01]} 31. Rc8 {[%emt 0:01:51] Threatens to win with Qb8.} Re8 {[%emt 0:00:17]} 32. Rxe8 {[%emt 0:01:49]} Qxe8 {[%emt 0:00:02]} 33. Rb2 {[%emt 0:00:46]} Qg6 {[%emt 0:03:29]} 34. Qe5 {[%emt 0:01:21]} Bd3 {[%emt 0:01:24]} 35. a4 {[%emt 0:04:41][%cal Ba3a4,Ba4a5][%mdl 32]} Bc4 {[%emt 0:01:07]} 36. a5 {[%emt 0:00:28]} Qf7 {[%emt 0:00:54]} 37. Rb8 {[%emt 0:01:49]} Re7 {[%emt 0:00:05]} 38. Qg3 {[%emt 0:00:18]} Rb7 {[%emt 0:03:38]} ({Black should play} 38... a6 $14) 39. Rc8 {[%emt 0:01:08]} a6 {[%emt 0:00:43]} 40. Qd6 {[%emt 0:00:00]} Qe7 {[%emt 0:00:00]} 41. Qc6 {[%emt 0:14:06] White is much more active.} (41. Qxe7 {simplifies} Rxe7 42. g4 Bb5 43. Kg3) 41... Qf7 {[%emt 0:07:47]} 42. Qd6 {[%emt 0:03:46] Wards off Qf4+} (42. Kg3 $14) 42... Qe7 $1 $16 {[%emt 0:00:06] [#]} 43. Qxe7 {[%emt 0:00:58]} Rxe7 {[%emt 0:00:03][%mdl 4096] Endgame [#] KRB-KRB} 44. g4 $1 {[%emt 0:00:14]} Rf7 {[%emt 0:11:15]} 45. Kg3 {[%emt 0:02:11]} g5 {[%emt 0:00:08]} (45... Bb5 $16 {is a better defense.} 46. Rd8 g5) 46. Rh8+ {[%emt 0:06:23]} Kg6 {[%emt 0:00:05]} 47. Re8 {[%emt 0:00:14] Repels Be2} Kh7 {[%emt 0:01:26]} 48. Re6 {[%emt 0:04:40]} Bb5 {[%emt 0:14:27] Repels Re8} 49. Be5 {[%emt 0:02:27]} (49. Be3 $16) 49... Rd7 $1 $11 {[%emt 0:06:50]} 50. Bd4 {[%emt 0:09:06]} ({Better is} 50. Bc3 $11) 50... Rf7 $16 {[%emt 0:00:18]} 51. Re3 {[%emt 0:00:39]} Kg6 {[%emt 0:06:35]} 52. Re5 {[%emt 0:02:50]} Bc4 {[%emt 0:02:53]} 53. Re6+ {[%emt 0:00:09]} Kh7 {[%emt 0:00:02]} 54. Re3 {[%emt 0:00:05]} Kg6 {[%emt 0:03:27]} 55. h4 {[%emt 0:00:30]} gxh4+ {[%emt 0:00:05]} 56. Kxh4 {[%emt 0:00:03]} Rf4 {[%emt 0:00:07]} 57. Be5 {[%emt 0:00:15]} d4 {[%emt 0:00:45]} 58. Ra3 {[%emt 0:00:16]} (58. Bxf4 {simplifies} dxe3 59. Bxe3 Kg7 60. f4) 58... Rf7 {[%emt 0:00:10]} 59. Bxd4 {[%emt 0:00:32]} Bd5 {[%emt 0:02:56]} 60. Kg3 {[%emt 0:00:00]} h5 {[%emt 0:00:00]} 61. Rc3 {[%emt 0:04:56]} hxg4 {[%emt 0:01:34]} 62. fxg4 {[%emt 0:00:09]} Rd7 {[%emt 0:06:24]} 63. Be3 {[%emt 0:02:02]} Kf6 {[%emt 0:03:38]} 64. Rc1 {[%emt 0:03:31]} Ke6 {[%emt 0:01:35]} 65. Bb6 {[%emt 0:01:33]} Rf7 {[%emt 0:00:39]} 66. Re1+ {[%emt 0:00:18]} Kd6 {[%emt 0:00:19]} 67. Kh4 {[%emt 0:02:26]} Be6 {[%emt 0:03:32]} 68. Kg5 {[%emt 0:01:53]} Rf3 {[%emt 0:00:55]} 69. Rd1+ {[%emt 0:01:55]} Kc6 {[%emt 0:00:53]} 70. Rc1+ {[%emt 0:00:22]} Kd5 {[%emt 0:01:07]} 71. Rc5+ {[%emt 0:09:38]} Kd6 {[%emt 0:00:15]} 72. Rc2 {[%emt 0:00:09]} Kd5 {[%emt 0:00:23]} 73. Rd2+ {[%emt 0:05:59]} Kc6 {[%emt 0:00:07]} 74. Re2 {[%emt 0:00:21]} Kd7 {[%emt 0:00:11]} 75. Rd2+ {[%emt 0:02:08]} Kc6 {[%emt 0:00:12]} 76. Rc2+ {[%emt 0:00:09]} Kd5 $1 {[%emt 0:00:17]} 77. Bc7 {[%emt 0:00:03]} Rf8 {[%emt 0:00:16]} 78. Rd2+ {[%emt 0:00:04]} Kc4 {[%emt 0:00:09]} 79. Rd6 {[%emt 0:00:04]} (79. Rg2 $16) 79... Rg8+ $11 {[%emt 0:00:20] The position is equal.} 80. Kf6 {[%emt 0:00:02]} Bxg4 {[%emt 0:00:05]} 81. Rxa6 {[%emt 0:00:04]} Rc8 {[%emt 0:01:33]} 82. Ra7 {[%emt 0:00:17]} Kb5 {[%emt 0:00:30] Weighted Error Value: White=0.13 (very precise) /Black=0.10 (very precise)} 1/2-1/2

[Event "WR Chess Masters 2023"]
[Site "Duesseldorf"]
[Date "2023.02.16"]
[Round "1.4"]
[White "Aronian, Levon"]
[Black "Praggnanandhaa R"]
[Result "1-0"]
[ECO "A20"]
[WhiteElo "2736"]
[BlackElo "2690"]
[Annotator "TA"]
[PlyCount "99"]
[EventDate "2023.02.16"]
[EventCountry "GER"]
[SourceTitle "playchess.com"]
[Source "ChessBase"]
[SourceQuality "1"]
[TimeControl "40/7200:20/3600:900+30"]

{[%evp 9,99,0,10,3,-1,-3,12,-21,10,4,8,0,2,-27,0,0,6,0,0,0,22,0,92,104,101,106,113,103,91,85,86,91,91,90,111,106,114,116,127,115,141,145,168,133,137,134,155,104,166,100,103,100,178,141,144,141,143,50,103,100,218,215,218,204,261,246,289,270,320,320,313,300,301,288,670,670,1143,526,1115,1072,1046,1029,6353,274,241,0,6299,4922,29969,29968,29965,5411]} 1. c4 {[%emt 0:00:00]} e5 {[%emt 0:00:39]} 2. g3 {[%emt 0:00:11]} c6 {[%emt 0:00:18][%cal Bc7c6,Bc6d5][%mdl 32]} 3. d4 {[%emt 0:00:06][%cal Bd2d4,Bd4d5][%mdl 32]} e4 {[%emt 0:00:26]} 4. d5 {[%emt 0:00:06]} Bb4+ {[%emt 0:00:35]} 5. Bd2 {[%emt 0:00:07]} Qe7 {[%emt 0:00:12]} 6. Nh3 {[%emt 0:03:27] A20: English Opening: 1...e5.} Nf6 {[%emt 0:06:17]} 7. Nc3 {[%emt 0:00:12]} cxd5 {[%emt 0:07:50]} 8. Nf4 {[%emt 0:05:35] [#] The position is equal.} (8. cxd5 {simplifies} O-O 9. Bg2 d6 10. Nxe4 Bxh3 11. Nxf6+ Qxf6 12. Bxh3 Qxb2 13. Bxb4 Qxb4+ 14. Qd2) 8... Bxc3 $146 {[%emt 0:18:02]} ({Predecessor:} 8... dxc4 9. Nfd5 Nxd5 10. Nxd5 Bxd2+ 11. Qxd2 Qd8 12. Bg2 O-O 13. Bxe4 d6 14. Rc1 Nd7 15. Rxc4 {1-0 Shankland,S (2709)-Robson,R (2681) American Cup Elim rapid 2022 (1.4)}) 9. Bxc3 {[%emt 0:00:15]} dxc4 {[%emt 0:00:27]} 10. e3 {[%emt 0:13:29][%cal Og3g4]} Nc6 {[%emt 0:03:40]} 11. g4 {[%emt 0:02:02]} h6 {[%emt 0:09:18]} (11... Ne5 $5) 12. Bxc4 {[%emt 0:00:55]} d6 {[%emt 0:04:56]} 13. Rg1 Bd7 {[%emt 0:06:01]} 14. Nd5 {[%emt 0:23:25]} Nxd5 {[%emt 0:00:34]} 15. Qxd5 {[%emt 0:00:30]} (15. Bxd5 {seems wilder.} Be6 16. Bxg7 Rg8 17. Bxh6 Ne5 18. Bxe4 d5 19. Bh1) 15... O-O-O {[%emt 0:15:01]} (15... Rd8 $11 {remains equal.}) 16. Qxf7 $16 {[%emt 0:02:24] White has more active pieces. The black rooks are badly placed.} (16. Bxg7 Rhg8 17. Bc3 (17. Bxh6 $2 Qf6 $19) 17... Be6 $17) 16... Qxf7 {[%emt 0:00:44]} 17. Bxf7 {[%emt 0:00:07]} Ne5 {[%emt 0:00:24]} 18. Bxe5 {[%emt 0:00:57]} dxe5 {[%emt 0:00:02]} 19. Bd5 $1 {[%emt 0:01:10]} Bc6 {[%emt 0:03:13]} 20. Bxc6 {[%emt 0:01:06]} bxc6 {[%emt 0:00:02][%mdl 4096] Endgame KRR-KRR} 21. Rc1 {[%emt 0:02:15]} Rd6 {[%emt 0:00:19]} 22. Ke2 {[%emt 0:01:14]} Rhd8 {[%emt 0:05:57]} 23. Rc2 {[%emt 0:00:14] Inhibits Rd2+.} g5 {[%emt 0:02:13]} 24. Rgc1 {[%emt 0:07:25]} Kb7 {[%emt 0:00:46]} 25. b3 {[%emt 0:07:32]} Rd5 {[%emt 0:08:35]} 26. Ke1 {[%emt 0:01:28]} (26. Rxc6 $6 Rd2+ 27. Ke1 Rxa2 $16) 26... R8d6 {[%emt 0:02:03]} 27. Rc4 {[%emt 0:03:17]} Rd3 {[%emt 0:03:33]} 28. R1c2 {[%emt 0:04:47]} ({But not} 28. Rxe4 Rd2 $16) (28. h3 $142) 28... Rd1+ {[%emt 0:01:39]} 29. Ke2 {[%emt 0:00:04][%cal Oc4c6] aiming for Rxc6!} Rh1 {[%emt 0:01:00]} 30. Rxe4 {[%emt 0:00:04]} Rd5 {[%emt 0:00:28]} (30... Rf6 $16 {was necessary.}) 31. Rec4 {[%emt 0:15:04]} Rd6 {[%emt 0:01:02] [#]} 32. Rb4+ $1 {[%emt 0:01:01]} Kc7 {[%emt 0:01:11] [#]} 33. Rb5 {[%emt 0:00:53]} (33. Rc5 $1 $16 {[%cal Rc5e5]}) 33... Re6 {[%emt 0:01:36]} (33... Rf6 $1 $14) 34. Ra5 {[%emt 0:00:36]} Rxh2 {[%emt 0:03:40]} (34... Rf6 $16 {was called for.}) 35. Rxa7+ $18 {[%emt 0:00:05]} Kb6 {[%emt 0:00:03]} 36. Rf7 {[%emt 0:01:42]} e4 {[%emt 0:00:20]} 37. a4 {[%emt 0:02:42][%cal Ba2a4,Ba4a5][%mdl 32]} Rh1 {[%emt 0:00:23]} 38. b4 {[%emt 0:00:50] a5+ is the strong threat.} Ra1 {[%emt 0:01:31]} 39. a5+ {[%emt 0:03:11]} Kb5 {[%emt 0:00:14]} 40. Rb7+ {[%emt 0:00:00]} Ka4 {[%emt 0:00:00]} 41. Rb6 {[%emt 0:02:15] And now b5 would win.} Rd6 $2 {[%emt 0:02:44]} (41... Kb3 42. Rd2 Re7 43. Rxc6 Rh7) 42. Rd2 {[%emt 0:00:53]} (42. Rcxc6 Rdd1 43. Rc4 (43. Rxh6 $2 {gets mated.} Re1+ 44. Kd2 Kb3 45. Rh8 Rad1#) 43... Re1+ 44. Kd2 Red1+ 45. Ke2 Re1+ 46. Kd2 Red1+ 47. Ke2 $11) 42... Rxd2+ {[%emt 0:02:24]} 43. Kxd2 {[%emt 0:00:05] KR-KR} c5 {[%emt 0:00:12]} 44. bxc5 {[%emt 0:00:38] White threatens a6 and mate.} Kxa5 {[%emt 0:00:07]} 45. Kc3 {[%emt 0:01:20]} Ra2 {[%emt 0:00:15]} 46. Rf6 $2 {[%emt 0:01:08]} (46. Rb2 Rxb2 47. Kxb2) 46... Ra4 {[%emt 0:02:41]} 47. Rb6 $2 {[%emt 0:00:49]} (47. c6 Kb5 48. Rxh6 (48. Kb3 Rb4+ 49. Kc3 Rc4+ 50. Kd2 Rxc6 $16)) 47... Ra2 {[%emt 0:00:19]} 48. Rb2 {[%emt 0:01:30]} Rxb2 {[%emt 0:02:15]} 49. Kxb2 {[%emt 0:00:09]} Kb5 {[%emt 0:00:02]} 50. Kb3 {[%emt 0:00:06] Weighted Error Value: White=0.29 (precise) /Black=0.47} 1-0